[Event "*** MasterClass Titled Tuesday Blitz"]
[Site "Chess.com"]
[Date "2017.12.05"]
[Round "2"]
[White "cheese111"]
[Black "Margency"]
[Result "1-0"]
[WhiteElo "2423"]
[BlackElo "2505"]
[TimeControl "180+2"]
[EndTime "14:35:53 PST"]
[Termination "cheese111 won by resignation"]

1. e4 {[%clk 0:03:00.7]} 1... c5 {[%clk 0:02:59.5]} 2. Nf3 {[%clk 0:03:01.1]}
2... d6 {[%clk 0:03:00.8]} 3. Bb5+ {[%clk 0:03:00.5]} 3... Nc6 {[%clk 0:03:01]}
4. O-O {[%clk 0:03:01.1]} 4... Bd7 {[%clk 0:03:02]} 5. Re1 {[%clk 0:03:01.8]}
5... Nf6 {[%clk 0:03:03.3]} 6. c3 {[%clk 0:03:02.2]} 6... a6 {[%clk 0:03:04.5]}
7. Bc4 {[%clk 0:03:03.8]} 7... b5 {[%clk 0:03:01.6]} 8. Bf1 {[%clk 0:03:03.8]}
8... e6 {[%clk 0:03:02.9]} 9. d4 {[%clk 0:03:03.1]} 9... cxd4 {[%clk 0:03:02.5]}
10. cxd4 {[%clk 0:03:05]} 10... d5 {[%clk 0:03:03.9]} 11. e5 {[%clk 0:02:58.1]}
11... Ne4 {[%clk 0:03:04.5]} 12. Nbd2 {[%clk 0:02:59.7]} 12... Nxd2 {[%clk
0:03:04.8]} 13. Bxd2 {[%clk 0:03:01.6]} 13... Be7 {[%clk 0:03:06.1]} 14. Bd3
{[%clk 0:02:40.2]} 14... O-O {[%clk 0:02:59.1]} 15. Rc1 {[%clk 0:02:40]} 15...
Rc8 {[%clk 0:02:57.1]} 16. Bb1 {[%clk 0:02:38]} 16... f5 {[%clk 0:02:46.5]} 17.
exf6 {[%clk 0:02:35]} 17... Bxf6 {[%clk 0:02:48.4]} 18. Bf4 {[%clk 0:02:08.8]}
18... Be7 {[%clk 0:02:50.3]} 19. Bg3 {[%clk 0:02:04.1]} 19... Bf6 {[%clk
0:02:52.2]} 20. Ne5 {[%clk 0:02:03.9]} 20... Nxe5 {[%clk 0:02:46.7]} 21. Rxc8
{[%clk 0:01:36.3]} 21... Bxc8 {[%clk 0:02:39.7]} 22. Bxe5 {[%clk 0:01:14.7]}
22... b4 {[%clk 0:02:29.6]} 23. Qh5 {[%clk 0:01:04.2]} 23... h6 {[%clk
0:02:23.3]} 24. Qg6 {[%clk 0:00:57]} 24... Bxe5 {[%clk 0:02:24.2]} 25. Qh7+
{[%clk 0:00:42.5]} 25... Kf7 {[%clk 0:02:25.1]} 26. dxe5 {[%clk 0:00:25.2]}
26... Qg5 {[%clk 0:02:19.8]} 27. f4 {[%clk 0:00:13.7]} 27... Qg4 {[%clk
0:02:12.7]} 28. Rc1 {[%clk 0:00:14.5]} 28... Bd7 {[%clk 0:02:08.2]} 29. g3
{[%clk 0:00:06.8]} 29... Rc8 {[%clk 0:02:02.6]} 30. Rxc8 {[%clk 0:00:05.3]}
30... Bxc8 {[%clk 0:02:00.4]} 31. Qd3 {[%clk 0:00:06.2]} 31... Ke7 {[%clk
0:01:53.3]} 32. Bc2 {[%clk 0:00:05.7]} 32... a5 {[%clk 0:01:50.8]} 33. Bd1
{[%clk 0:00:06.6]} 33... Qf5 {[%clk 0:01:46.2]} 34. Qxf5 {[%clk 0:00:06.6]}
34... exf5 {[%clk 0:01:48.1]} 35. Kf2 {[%clk 0:00:07.5]} 35... d4 {[%clk
0:01:47.8]} 36. Ke2 {[%clk 0:00:07]} 36... Ba6+ {[%clk 0:01:48.7]} 37. Kd2
{[%clk 0:00:07.8]} 37... Bc4 {[%clk 0:01:49.3]} 38. Bb3 {[%clk 0:00:07.7]} 38...
Bf1 {[%clk 0:01:49.7]} 39. Bc2 {[%clk 0:00:06.7]} 39... Ke6 {[%clk 0:01:47.6]}
40. Bd3 {[%clk 0:00:07.8]} 40... Bg2 {[%clk 0:01:47.6]} 41. Bc4+ {[%clk
0:00:08.4]} 41... Bd5 {[%clk 0:01:48.4]} 42. Kd3 {[%clk 0:00:08.6]} 42... Bxc4+
{[%clk 0:01:43.7]} 43. Kxc4 {[%clk 0:00:10.5]} 43... g5 {[%clk 0:01:43.3]} 44.
Kxd4 {[%clk 0:00:11.4]} 44... g4 {[%clk 0:01:44.6]} 45. Kc5 {[%clk 0:00:12.2]}
45... h5 {[%clk 0:01:45.5]} 46. b3 {[%clk 0:00:13.4]} 46... h4 {[%clk 0:01:45]}
47. gxh4 {[%clk 0:00:15.3]} 47... Ke7 {[%clk 0:01:46.2]} 48. Kd5 {[%clk
0:00:15.8]} 48... Kf7 {[%clk 0:01:47.5]} 49. e6+ {[%clk 0:00:16.7]} 49... Ke7
{[%clk 0:01:48.9]} 50. Ke5 {[%clk 0:00:17.9]} 50... Ke8 {[%clk 0:01:49.8]} 51.
Kxf5 {[%clk 0:00:19]} 1-0

[Event "*** MasterClass Titled Tuesday Blitz"]
[Site "Chess.com"]
[Date "2017.12.05"]
[Round "2"]
[White "QuintilianoR"]
[Black "ncdogan"]
[Result "1-0"]
[WhiteElo "2520"]
[BlackElo "2396"]
[TimeControl "180+2"]
[EndTime "14:36:03 PST"]
[Termination "QuintilianoR won by resignation"]

1. d4 {[%clk 0:03:01.8]} 1... Nf6 {[%clk 0:01:35.5]} 2. c4 {[%clk 0:03:00.9]}
2... g6 {[%clk 0:01:34.9]} 3. Nc3 {[%clk 0:03:00.5]} 3... Bg7 {[%clk 0:01:36.2]}
4. Nf3 {[%clk 0:03:01]} 4... O-O {[%clk 0:01:36.5]} 5. e4 {[%clk 0:03:02.6]}
5... d6 {[%clk 0:01:37.5]} 6. Be2 {[%clk 0:03:04.2]} 6... e5 {[%clk 0:01:38.8]}
7. O-O {[%clk 0:03:05.8]} 7... exd4 {[%clk 0:01:38.9]} 8. Nxd4 {[%clk
0:03:06.4]} 8... Re8 {[%clk 0:01:40.4]} 9. f3 {[%clk 0:03:08]} 9... c6 {[%clk
0:01:41.2]} 10. Kh1 {[%clk 0:03:09.5]} 10... Nbd7 {[%clk 0:01:42.3]} 11. Bg5
{[%clk 0:03:09]} 11... Qb6 {[%clk 0:01:42.7]} 12. Nb3 {[%clk 0:03:10]} 12... a5
{[%clk 0:01:43]} 13. Qd2 {[%clk 0:03:11.5]} 13... a4 {[%clk 0:01:42.3]} 14. Be3
{[%clk 0:03:13.1]} 14... Qc7 {[%clk 0:01:41]} 15. Nd4 {[%clk 0:03:13.6]} 15...
Nc5 {[%clk 0:01:40.7]} 16. Rad1 {[%clk 0:03:09.9]} 16... Nfd7 {[%clk 0:01:23.6]}
17. Rfe1 {[%clk 0:03:04.7]} 17... Ne5 {[%clk 0:01:19.6]} 18. Bf1 {[%clk
0:03:05.6]} 18... Qe7 {[%clk 0:01:17.6]} 19. Bf2 {[%clk 0:03:02.4]} 19... Ne6
{[%clk 0:01:02.7]} 20. Nc2 {[%clk 0:02:59.6]} 20... Rd8 {[%clk 0:01:00.3]} 21.
f4 {[%clk 0:02:51.2]} 21... Ng4 {[%clk 0:00:57]} 22. Bb6 {[%clk 0:02:51.9]}
22... Rd7 {[%clk 0:00:56.6]} 23. h3 {[%clk 0:02:44.7]} 23... Nf6 {[%clk
0:00:54.6]} 24. f5 {[%clk 0:02:25.6]} 24... Nc5 {[%clk 0:00:54.2]} 25. Qf4
{[%clk 0:02:14.3]} 25... Nh5 {[%clk 0:00:48.4]} 26. Qf2 {[%clk 0:01:56.2]} 26...
Be5 {[%clk 0:00:47.4]} 27. Re3 {[%clk 0:01:53.3]} 27... Qg5 {[%clk 0:00:38.8]}
28. g4 {[%clk 0:01:47.4]} 28... Nf6 {[%clk 0:00:31.8]} 29. Nd4 {[%clk
0:01:41.1]} 29... Qh6 {[%clk 0:00:21.1]} 30. Kg1 {[%clk 0:01:35]} 30... Re7
{[%clk 0:00:19.2]} 31. Nf3 {[%clk 0:01:28.7]} 31... Bf4 {[%clk 0:00:20.4]} 32.
Bxc5 {[%clk 0:01:27.7]} 32... dxc5 {[%clk 0:00:20]} 33. Rd8+ {[%clk 0:01:28.2]}
33... Re8 {[%clk 0:00:21.4]} 34. Red3 {[%clk 0:01:24.1]} 34... Kg7 {[%clk
0:00:18.3]} 35. e5 {[%clk 0:01:20.8]} 35... Rxd8 {[%clk 0:00:15.2]} 36. exf6+
{[%clk 0:01:21.2]} 36... Kxf6 {[%clk 0:00:17.1]} 37. Ne4+ {[%clk 0:01:19.8]}
37... Ke7 {[%clk 0:00:15.6]} 38. f6+ {[%clk 0:01:13.5]} 38... Ke6 {[%clk
0:00:16.8]} 39. g5 {[%clk 0:01:13.3]} 39... Bxg5 {[%clk 0:00:06]} 40. Nexg5+
{[%clk 0:01:13]} 40... Qxg5+ {[%clk 0:00:07.2]} 41. Nxg5+ {[%clk 0:01:14.1]} 1-0

[Event "*** MasterClass Titled Tuesday Blitz"]
[Site "Chess.com"]
[Date "2017.12.05"]
[Round "2"]
[White "Aygehovit1992"]
[Black "GrigorGrigorov"]
[Result "0-1"]
[WhiteElo "2491"]
[BlackElo "2608"]
[TimeControl "180+2"]
[EndTime "14:36:07 PST"]
[Termination "GrigorGrigorov won on time"]

1. Nf3 {[%clk 0:02:51.9]} 1... d5 {[%clk 0:03:00.4]} 2. g3 {[%clk 0:02:43.9]}
2... c6 {[%clk 0:03:00.7]} 3. Bg2 {[%clk 0:02:43.4]} 3... Nf6 {[%clk 0:03:01.6]}
4. O-O {[%clk 0:02:42.9]} 4... Bg4 {[%clk 0:03:02]} 5. d3 {[%clk 0:02:40.3]}
5... Nbd7 {[%clk 0:03:02.5]} 6. h3 {[%clk 0:02:38.9]} 6... Bh5 {[%clk
0:03:02.5]} 7. Nbd2 {[%clk 0:02:35.5]} 7... e5 {[%clk 0:03:03.3]} 8. g4 {[%clk
0:02:11.9]} 8... Bg6 {[%clk 0:03:02.8]} 9. Nh4 {[%clk 0:02:12.5]} 9... Bd6
{[%clk 0:02:09.3]} 10. Nxg6 {[%clk 0:02:00.7]} 10... hxg6 {[%clk 0:02:09.6]} 11.
Nf3 {[%clk 0:01:53.6]} 11... Qe7 {[%clk 0:02:07.5]} 12. c4 {[%clk 0:01:53.7]}
12... e4 {[%clk 0:02:05.4]} 13. dxe4 {[%clk 0:01:53.2]} 13... dxe4 {[%clk
0:02:05.2]} 14. Nd4 {[%clk 0:01:46.9]} 14... Nxg4 {[%clk 0:02:02.4]} 15. e3
{[%clk 0:01:08.2]} 15... Ngf6 {[%clk 0:01:52.5]} 16. f4 {[%clk 0:00:48.4]} 16...
exf3 {[%clk 0:01:51.3]} 17. Qxf3 {[%clk 0:00:49.5]} 17... O-O {[%clk 0:01:34.9]}
18. Bd2 {[%clk 0:00:48]} 18... Nc5 {[%clk 0:01:31.9]} 19. Rad1 {[%clk
0:00:35.3]} 19... Nce4 {[%clk 0:01:32]} 20. Be1 {[%clk 0:00:36.5]} 20... Rad8
{[%clk 0:01:30]} 21. a3 {[%clk 0:00:37.3]} 21... Rfe8 {[%clk 0:01:30.3]} 22. Bh4
{[%clk 0:00:34.5]} 22... Qe5 {[%clk 0:01:28.9]} 23. Rfe1 {[%clk 0:00:17.7]}
23... Qh2+ {[%clk 0:00:55.6]} 24. Kf1 {[%clk 0:00:17.8]} 24... Nh5 {[%clk
0:00:50.5]} 25. Ne2 {[%clk 0:00:13]} 25... Nhf6 {[%clk 0:00:46.4]} 26. Rd4
{[%clk 0:00:08]} 26... Bc5 {[%clk 0:00:31.6]} 27. Rxd8 {[%clk 0:00:08.3]} 27...
Rxd8 {[%clk 0:00:32]} 28. Qf4 {[%clk 0:00:07.3]} 28... Qxf4+ {[%clk 0:00:28.7]}
29. Nxf4 {[%clk 0:00:05.5]} 29... g5 {[%clk 0:00:29.6]} 30. Bxe4 {[%clk
0:00:02.6]} 30... Nxe4 {[%clk 0:00:28.6]} 0-1

[Event "*** MasterClass Titled Tuesday Blitz"]
[Site "Chess.com"]
[Date "2017.12.05"]
[Round "2"]
[White "pastouche06"]
[Black "Hasangatin_Ramil"]
[Result "0-1"]
[WhiteElo "2333"]
[BlackElo "2405"]
[TimeControl "180+2"]
[EndTime "14:36:09 PST"]
[Termination "Hasangatin_Ramil won by resignation"]

1. d4 {[%clk 0:02:47.7]} 1... d6 {[%clk 0:02:59.7]} 2. e4 {[%clk 0:02:47.9]}
2... Nf6 {[%clk 0:03:00.1]} 3. f3 {[%clk 0:02:49.1]} 3... d5 {[%clk 0:02:58.3]}
4. Nc3 {[%clk 0:02:46.2]} 4... dxe4 {[%clk 0:02:56.7]} 5. fxe4 {[%clk
0:02:46.6]} 5... e5 {[%clk 0:02:58]} 6. d5 {[%clk 0:02:04.7]} 6... Bb4 {[%clk
0:02:53.2]} 7. Bd3 {[%clk 0:01:59.3]} 7... Nxe4 {[%clk 0:02:39.2]} 8. Bxe4
{[%clk 0:01:50.4]} 8... Bxc3+ {[%clk 0:02:39]} 9. bxc3 {[%clk 0:01:49.5]} 9...
Qh4+ {[%clk 0:02:36.8]} 10. Kf1 {[%clk 0:01:46.9]} 10... Qxe4 {[%clk 0:02:38.7]}
11. Nf3 {[%clk 0:01:32.9]} 11... Bg4 {[%clk 0:02:36.6]} 12. Qd3 {[%clk 0:01:26]}
12... Bxf3 {[%clk 0:02:34.2]} 13. gxf3 {[%clk 0:01:25.2]} 13... Qxd3+ {[%clk
0:02:34.6]} 14. cxd3 {[%clk 0:01:27.1]} 14... Nd7 {[%clk 0:02:35.3]} 15. Be3
{[%clk 0:01:27.1]} 15... O-O-O {[%clk 0:02:35.3]} 16. Ke2 {[%clk 0:01:26.7]}
16... f6 {[%clk 0:02:25.6]} 17. a4 {[%clk 0:01:26.2]} 17... a5 {[%clk
0:02:25.5]} 18. c4 {[%clk 0:01:25.8]} 18... c6 {[%clk 0:02:24.1]} 19. Rhb1
{[%clk 0:01:19.1]} 19... Kc7 {[%clk 0:02:19]} 20. dxc6 {[%clk 0:01:12.5]} 20...
bxc6 {[%clk 0:02:18.9]} 21. Bd2 {[%clk 0:01:13.8]} 21... Ra8 {[%clk 0:02:18.3]}
22. Rb2 {[%clk 0:01:12.1]} 22... Rhb8 {[%clk 0:02:17]} 23. Rxb8 {[%clk
0:01:12.3]} 23... Kxb8 {[%clk 0:02:18.9]} 24. Rb1+ {[%clk 0:01:04.8]} 24... Kc7
{[%clk 0:02:19.7]} 25. Be3 {[%clk 0:01:06.1]} 25... Rb8 {[%clk 0:02:12.9]} 26.
Rxb8 {[%clk 0:00:58.7]} 26... Nxb8 {[%clk 0:02:11.9]} 27. f4 {[%clk 0:00:54.6]}
27... Nd7 {[%clk 0:02:12.1]} 28. Kf3 {[%clk 0:00:47.7]} 28... Kd6 {[%clk
0:02:10.7]} 29. Bd2 {[%clk 0:00:46.2]} 29... Nc5 {[%clk 0:02:10.7]} 30. Bxa5
{[%clk 0:00:46.5]} 30... Nxa4 {[%clk 0:02:11.3]} 31. Bb4+ {[%clk 0:00:44.8]}
31... Ke6 {[%clk 0:02:08.9]} 32. Bf8 {[%clk 0:00:39]} 32... g6 {[%clk
0:02:04.6]} 33. h4 {[%clk 0:00:38.3]} 33... Kf5 {[%clk 0:02:01.5]} 34. fxe5
{[%clk 0:00:38.9]} 34... Kxe5 {[%clk 0:01:50.1]} 35. Ba3 {[%clk 0:00:40.4]}
35... Ke6 {[%clk 0:01:41.1]} 36. d4 {[%clk 0:00:38.9]} 36... Nb6 {[%clk
0:01:40.3]} 37. c5 {[%clk 0:00:35.5]} 37... Nd5 {[%clk 0:01:41.1]} 38. Bc1
{[%clk 0:00:32.3]} 38... f5 {[%clk 0:01:41.8]} 39. Bd2 {[%clk 0:00:32.5]} 39...
Nf6 {[%clk 0:01:40.1]} 40. Kf4 {[%clk 0:00:33.4]} 40... Ne4 {[%clk 0:01:40.8]}
41. Be3 {[%clk 0:00:33.7]} 41... Kd5 {[%clk 0:01:42]} 42. h5 {[%clk 0:00:34.5]}
42... Ke6 {[%clk 0:01:39.8]} 43. hxg6 {[%clk 0:00:35.4]} 43... hxg6 {[%clk
0:01:40]} 44. Kf3 {[%clk 0:00:32.3]} 44... g5 {[%clk 0:01:33.8]} 45. Ke2 {[%clk
0:00:33.5]} 45... f4 {[%clk 0:01:34.1]} 46. Bg1 {[%clk 0:00:30]} 46... Nc3+
{[%clk 0:01:30.9]} 47. Kf3 {[%clk 0:00:29.3]} 47... Nd5 {[%clk 0:01:32.8]} 48.
Kg4 {[%clk 0:00:30.3]} 48... Kf6 {[%clk 0:01:31.2]} 49. Bf2 {[%clk 0:00:30.3]}
49... Kg6 {[%clk 0:01:32]} 50. Bg1 {[%clk 0:00:30.9]} 50... Nf6+ {[%clk
0:01:32.2]} 51. Kf3 {[%clk 0:00:32.3]} 51... Kf5 {[%clk 0:01:33.6]} 0-1

[Event "*** MasterClass Titled Tuesday Blitz"]
[Site "Chess.com"]
[Date "2017.12.05"]
[Round "2"]
[White "nikitakhoroshev"]
[Black "pKiLz5Rn9b"]
[Result "0-1"]
[WhiteElo "2428"]
[BlackElo "2635"]
[TimeControl "180+2"]
[EndTime "14:36:28 PST"]
[Termination "pKiLz5Rn9b won by resignation"]

1. g3 {[%clk 0:03:00.5]} 1... Nf6 {[%clk 0:02:59.8]} 2. Bg2 {[%clk 0:03:02.4]}
2... d5 {[%clk 0:03:00.7]} 3. d3 {[%clk 0:02:33.4]} 3... e6 {[%clk 0:03:00.4]}
4. e4 {[%clk 0:02:20.3]} 4... dxe4 {[%clk 0:02:58.4]} 5. dxe4 {[%clk 0:02:22.2]}
5... Qxd1+ {[%clk 0:02:58.8]} 6. Kxd1 {[%clk 0:02:24.1]} 6... e5 {[%clk
0:03:00.1]} 7. f3 {[%clk 0:02:25]} 7... Nc6 {[%clk 0:03:00.5]} 8. c3 {[%clk
0:02:25.2]} 8... a5 {[%clk 0:02:59.8]} 9. Bh3 {[%clk 0:02:25]} 9... Bxh3 {[%clk
0:02:53.6]} 10. Nxh3 {[%clk 0:02:23.3]} 10... h5 {[%clk 0:02:55]} 11. Ke2 {[%clk
0:02:22.3]} 11... Be7 {[%clk 0:02:50.1]} 12. Be3 {[%clk 0:02:21.4]} 12... Nd7
{[%clk 0:02:47.2]} 13. Nf2 {[%clk 0:02:18.1]} 13... h4 {[%clk 0:02:44.5]} 14. g4
{[%clk 0:02:14.6]} 14... Nf8 {[%clk 0:02:44.6]} 15. Nd2 {[%clk 0:02:13.3]} 15...
Ne6 {[%clk 0:02:45.5]} 16. Nd3 {[%clk 0:02:09.1]} 16... O-O-O {[%clk 0:02:42.3]}
17. Nc4 {[%clk 0:02:08.1]} 17... f6 {[%clk 0:02:42.4]} 18. a4 {[%clk 0:02:09]}
18... b6 {[%clk 0:02:36.7]} 19. Rhd1 {[%clk 0:02:06.5]} 19... Rd7 {[%clk
0:02:36.8]} 20. Ne1 {[%clk 0:02:04.9]} 20... Rhd8 {[%clk 0:02:28.1]} 21. Rxd7
{[%clk 0:02:05.2]} 21... Rxd7 {[%clk 0:02:28.4]} 22. h3 {[%clk 0:02:06.4]} 22...
Bc5 {[%clk 0:02:26.3]} 23. Bd2 {[%clk 0:02:06.9]} 23... Bf8 {[%clk 0:02:19.9]}
24. Ng2 {[%clk 0:02:07.6]} 24... g5 {[%clk 0:02:17.6]} 25. Be3 {[%clk
0:02:05.6]} 25... Ne7 {[%clk 0:02:05.7]} 26. Rd1 {[%clk 0:02:03.4]} 26... Ng6
{[%clk 0:02:03.5]} 27. Rxd7 {[%clk 0:02:03.4]} 27... Kxd7 {[%clk 0:02:04.3]} 28.
Bd2 {[%clk 0:01:52.7]} 28... Nc5 {[%clk 0:02:02.5]} 29. b4 {[%clk 0:01:27.3]}
29... axb4 {[%clk 0:02:02.5]} 30. cxb4 {[%clk 0:01:29.2]} 30... Nxa4 {[%clk
0:02:03.9]} 31. Kd3 {[%clk 0:01:29.8]} 31... b5 {[%clk 0:01:56.9]} 32. Na5
{[%clk 0:01:30.9]} 32... c5 {[%clk 0:01:55]} 33. bxc5 {[%clk 0:01:30.4]} 33...
Nxc5+ {[%clk 0:01:55.7]} 34. Kc2 {[%clk 0:01:31.2]} 34... Ne6 {[%clk 0:01:47.1]}
35. Nb3 {[%clk 0:01:30.3]} 35... Kc6 {[%clk 0:01:47.5]} 36. Kd3 {[%clk
0:01:30.6]} 36... Nc5+ {[%clk 0:01:47]} 37. Nxc5 {[%clk 0:01:31.8]} 37... Bxc5
{[%clk 0:01:48.9]} 38. Ne1 {[%clk 0:01:31.1]} 38... Nf8 {[%clk 0:01:39.3]} 39.
Nc2 {[%clk 0:01:21.5]} 39... Ne6 {[%clk 0:01:39.9]} 40. Nb4+ {[%clk 0:01:21.8]}
40... Bxb4 {[%clk 0:01:34.8]} 41. Bxb4 {[%clk 0:01:21.7]} 41... Nf4+ {[%clk
0:01:36.3]} 42. Ke3 {[%clk 0:01:18.4]} 42... Kd7 {[%clk 0:01:36.9]} 43. Be1
{[%clk 0:00:57.6]} 43... Ng2+ {[%clk 0:01:28.8]} 44. Kf2 {[%clk 0:00:56.2]}
44... Nxe1 {[%clk 0:01:25.5]} 45. Kxe1 {[%clk 0:00:52.4]} 45... Kd6 {[%clk
0:01:26.8]} 46. Kd2 {[%clk 0:00:40.6]} 46... b4 {[%clk 0:01:23.9]} 47. Kc2
{[%clk 0:00:38.5]} 47... Kc5 {[%clk 0:01:21.6]} 48. Kb3 {[%clk 0:00:39.4]} 48...
Kb5 {[%clk 0:01:22.5]} 49. Kb2 {[%clk 0:00:35.9]} 49... Kc4 {[%clk 0:01:23]} 50.
Kc2 {[%clk 0:00:37.2]} 50... Kd4 {[%clk 0:01:24.2]} 0-1

[Event "*** MasterClass Titled Tuesday Blitz"]
[Site "Chess.com"]
[Date "2017.12.05"]
[Round "2"]
[White "FearNoEvil12"]
[Black "GameOverBro"]
[Result "0-1"]
[WhiteElo "2041"]
[BlackElo "2293"]
[TimeControl "180+2"]
[EndTime "14:36:28 PST"]
[Termination "GameOverBro won by checkmate"]

1. e4 {[%clk 0:03:01.9]} 1... d6 {[%clk 0:03:00.3]} 2. Nc3 {[%clk 0:03:02.7]}
2... Nf6 {[%clk 0:03:00.7]} 3. f4 {[%clk 0:03:04]} 3... d5 {[%clk 0:03:00.7]} 4.
e5 {[%clk 0:03:03.3]} 4... d4 {[%clk 0:02:56.8]} 5. exf6 {[%clk 0:03:00.5]} 5...
dxc3 {[%clk 0:02:55.3]} 6. fxg7 {[%clk 0:03:01.1]} 6... cxd2+ {[%clk 0:02:54.8]}
7. Bxd2 {[%clk 0:03:02.5]} 7... Bxg7 {[%clk 0:02:55.4]} 8. Qh5 {[%clk 0:03:03]}
8... Qd4 {[%clk 0:02:51.8]} 9. Nf3 {[%clk 0:02:54]} 9... Qxb2 {[%clk 0:02:43.5]}
10. Rd1 {[%clk 0:02:55.4]} 10... Qxc2 {[%clk 0:02:22]} 11. Be2 {[%clk
0:02:46.6]} 11... Qf5 {[%clk 0:02:10.9]} 12. Qh4 {[%clk 0:02:37.7]} 12... Nc6
{[%clk 0:01:59.8]} 13. O-O {[%clk 0:02:37]} 13... Be6 {[%clk 0:01:58.6]} 14. Be3
{[%clk 0:02:29.9]} 14... Bf6 {[%clk 0:01:46.5]} 15. Qf2 {[%clk 0:02:29.3]} 15...
Rg8 {[%clk 0:01:41]} 16. Bd3 {[%clk 0:02:27.7]} 16... Qa5 {[%clk 0:01:38.1]} 17.
Be4 {[%clk 0:02:27.3]} 17... Qxa2 {[%clk 0:01:31.3]} 18. Rd2 {[%clk 0:02:27.4]}
18... Qa6 {[%clk 0:01:25.3]} 19. Rfd1 {[%clk 0:02:26.4]} 19... h5 {[%clk
0:01:25.7]} 20. f5 {[%clk 0:02:07.8]} 20... Bc4 {[%clk 0:01:22]} 21. Kh1 {[%clk
0:01:56.6]} 21... Bc3 {[%clk 0:01:06.1]} 22. Rc2 {[%clk 0:01:30.1]} 22... Bb3
{[%clk 0:01:05.7]} 23. Rxc3 {[%clk 0:01:18.4]} 23... Bxd1 {[%clk 0:01:06.4]} 24.
Bxc6+ {[%clk 0:01:13]} 24... bxc6 {[%clk 0:01:04.7]} 25. Nd4 {[%clk 0:01:10]}
25... Rb8 {[%clk 0:00:53]} 26. h3 {[%clk 0:01:08.9]} 26... Rb1 {[%clk
0:00:49.2]} 27. Kh2 {[%clk 0:01:09]} 27... c5 {[%clk 0:00:50.5]} 28. Nf3 {[%clk
0:00:31]} 28... Qd6+ {[%clk 0:00:45]} 29. g3 {[%clk 0:00:27.6]} 29... Bxf3
{[%clk 0:00:37.8]} 30. Qxf3 {[%clk 0:00:28]} 30... Rb2+ {[%clk 0:00:38.3]} 31.
Bf2 {[%clk 0:00:20.7]} 31... h4 {[%clk 0:00:21.2]} 32. Qa8+ {[%clk 0:00:14.1]}
32... Kd7 {[%clk 0:00:22.3]} 33. Qf3 {[%clk 0:00:12.8]} 33... hxg3+ {[%clk
0:00:21.3]} 34. Kh1 {[%clk 0:00:13.2]} 34... gxf2 {[%clk 0:00:19.2]} 35. Rd3
{[%clk 0:00:13.2]} 35... Rg1# {[%clk 0:00:18.1]} 0-1

[Event "*** MasterClass Titled Tuesday Blitz"]
[Site "Chess.com"]
[Date "2017.12.05"]
[Round "2"]
[White "Pakarma"]
[Black "wanyaland"]
[Result "0-1"]
[WhiteElo "2055"]
[BlackElo "2256"]
[TimeControl "180+2"]
[EndTime "14:36:29 PST"]
[Termination "wanyaland won by resignation"]

1. Nf3 {[%clk 0:02:49.5]} 1... Nf6 {[%clk 0:02:59.8]} 2. g3 {[%clk 0:02:41.8]}
2... d5 {[%clk 0:03:00]} 3. Bg2 {[%clk 0:02:42.1]} 3... e6 {[%clk 0:03:01.9]} 4.
O-O {[%clk 0:02:41.8]} 4... Be7 {[%clk 0:03:02.9]} 5. b3 {[%clk 0:02:41.6]} 5...
c5 {[%clk 0:03:02.4]} 6. Bb2 {[%clk 0:02:42.8]} 6... Nc6 {[%clk 0:03:01.2]} 7.
e3 {[%clk 0:02:42.1]} 7... O-O {[%clk 0:03:00.5]} 8. d4 {[%clk 0:02:43.1]} 8...
b6 {[%clk 0:03:01.2]} 9. c4 {[%clk 0:02:43]} 9... Bb7 {[%clk 0:02:59.3]} 10.
Nbd2 {[%clk 0:02:43.2]} 10... Rc8 {[%clk 0:02:57.7]} 11. Rc1 {[%clk 0:02:42.6]}
11... a6 {[%clk 0:02:58.6]} 12. Qe2 {[%clk 0:02:42.7]} 12... Re8 {[%clk
0:02:58.5]} 13. Rfd1 {[%clk 0:02:43.4]} 13... Qc7 {[%clk 0:02:56.6]} 14. cxd5
{[%clk 0:02:42.9]} 14... exd5 {[%clk 0:02:56.5]} 15. dxc5 {[%clk 0:02:43.3]}
15... bxc5 {[%clk 0:02:57]} 16. Bh3 {[%clk 0:02:36.5]} 16... Rcd8 {[%clk
0:02:56.6]} 17. Qf1 {[%clk 0:02:32]} 17... Ne4 {[%clk 0:02:50.8]} 18. Nxe4
{[%clk 0:02:27.4]} 18... dxe4 {[%clk 0:02:52.7]} 19. Nd2 {[%clk 0:02:25.8]}
19... Nb4 {[%clk 0:02:53.2]} 20. Nc4 {[%clk 0:02:18.9]} 20... Nxa2 {[%clk
0:02:42]} 21. Ra1 {[%clk 0:02:12.9]} 21... Nb4 {[%clk 0:02:41.5]} 22. Be5 {[%clk
0:02:04.9]} 22... Qc6 {[%clk 0:02:42.4]} 23. Na5 {[%clk 0:02:05.2]} 23... Qb6
{[%clk 0:02:43.4]} 24. Nxb7 {[%clk 0:02:05.6]} 24... Qxb7 {[%clk 0:02:43.9]} 25.
Qc4 {[%clk 0:02:00.7]} 25... Bf8 {[%clk 0:02:38.7]} 26. Bc3 {[%clk 0:01:57.9]}
26... Rxd1+ {[%clk 0:02:27.1]} 27. Rxd1 {[%clk 0:01:57.5]} 27... a5 {[%clk
0:02:28.3]} 28. Bg2 {[%clk 0:01:56.8]} 28... h5 {[%clk 0:02:13.7]} 29. Bh3
{[%clk 0:01:56.2]} 29... Qb6 {[%clk 0:01:37.8]} 30. Rd7 {[%clk 0:01:49.5]} 30...
Qg6 {[%clk 0:01:38.5]} 31. Kg2 {[%clk 0:01:40.5]} 31... h4 {[%clk 0:01:33.8]}
32. Ra7 {[%clk 0:01:32.9]} 32... hxg3 {[%clk 0:01:27.6]} 33. hxg3 {[%clk
0:01:33.1]} 33... Nd3 {[%clk 0:01:26.5]} 34. Rxa5 {[%clk 0:01:20.5]} 34... Qh5
{[%clk 0:01:21.9]} 35. Ra7 {[%clk 0:01:12.7]} 35... Qf3+ {[%clk 0:01:20.8]} 36.
Kh2 {[%clk 0:01:07.4]} 36... Qxf2+ {[%clk 0:01:21.4]} 37. Bg2 {[%clk 0:01:05.3]}
37... Re6 {[%clk 0:01:20.3]} 38. Qxe6 {[%clk 0:00:43.2]} 38... fxe6 {[%clk
0:01:19.8]} 39. Kh1 {[%clk 0:00:28.1]} 39... Qxe3 {[%clk 0:01:17.2]} 40. Ba5
{[%clk 0:00:18.4]} 40... Bd6 {[%clk 0:01:12.9]} 41. Bc3 {[%clk 0:00:08]} 41...
Nf2+ {[%clk 0:01:11.2]} 42. Kg1 {[%clk 0:00:08.7]} 42... Ng4+ {[%clk 0:01:11.4]}
43. Kh1 {[%clk 0:00:09.6]} 43... Qc1+ {[%clk 0:01:09.1]} 0-1